bitfinex-derivatives/quotes_BNBF0:USTF0_20250521
["timestamp","ask_amount","ask_price","bid_price","bid_amount"]
[1747853265198,1.4243447,669.07,667.68,0.42040779]
[1747853265390,1.4243447,669.06,667.68,0.42040779]
[1747853265594,1.4243447,669.05,667.68,0.42040779]
[1747853265804,1.4243447,669.04,667.68,0.42040779]
[1747853266005,1.4243447,669.03,667.68,0.42040779]
[1747853266201,1.10876253,668.34,667.55,0.26040303]
[1747853266394,0.9995747,668.33,666.26,0.47325388]
[1747853266597,0.9995747,668.32,667.6,0.26038646]
[1747853266792,0.9995747,668.31,667.6,0.26038646]
[1747853267005,1.43426346,668.3,665.98,1.00651161]
[1747853267298,1.43433421,668.29,665.98,1.00651161]
[1747853267498,2.47437938,668.28,665.98,1.00651161]
[1747853267695,0.9995747,668.27,665.99,0.26068294]
[1747853267898,1.43343999,668.26,665.99,0.26068294]
[1747853268103,1.43343999,668.25,665.99,0.26068294]
[1747853268298,1.43343999,668.24,665.99,0.26068294]
[1747853268598,0.9995747,668.23,665.99,0.26068294]
[1747853268800,0.9995747,668.22,665.99,0.26068294]
[1747853269000,0.9995747,668.21,665.99,0.26068294]
[1747853269203,1.10876253,667.93,665.99,0.26068294]
[1747853269501,1.10876253,667.93,665.55,0.47325388]
[1747853270401,1.04004517,667.92,665.55,0.47325388]
[1747853270603,1.04004517,667.92,665.56,0.26074349]
[1747853271801,1.04004517,667.91,665.56,0.26074349]
[1747853272803,1.04004517,667.9,665.56,0.26074349]
[1747853274205,1.04004517,668.14,665.56,0.26074349]
[1747853275307,1.04004517,668.14,665.22,1.00651161]
[1747853275608,1.04004517,668.14,665.56,0.26069076]
[1747853275806,1.04004517,668.13,665.56,0.26069076]
[1747853276004,1.04004517,668.13,665.29,0.47325388]
[1747853276709,1.04004517,668.13,665.3,0.26071126]
[1747853277008,1.04004517,668.44,665.3,0.26071126]
[1747853278007,1.04004517,668.43,665.3,0.26071126]
[1747853278306,1.04004517,668.43,665.22,1.00651161]
[1747853278708,1.04004517,668.43,665.3,0.26067025]
[1747853278911,1.04004517,668.43,665.22,1.00651161]
[1747853279710,1.04004517,668.43,665.23,0.26066635]
[1747853280012,1.04004517,668.52,665.23,0.26066635]
[1747853281110,1.04004517,668.62,665.23,0.26066635]
[1747853281305,1.04004517,668.62,665.22,1.00651161]
[1747853281705,1.04004517,668.62,665.23,0.26062047]
[1747853282912,1.10876253,668.73,665.89,1.00651161]
[1747853284312,1.04004517,668.72,665.89,1.00651161]
[1747853285719,1.10876253,668.69,665.53,0.47325388]
[1747853286216,1.04004517,668.68,665.53,0.47325388]
[1747853286517,1.04004517,668.68,665.51,1.00651161]
[1747853287518,0.26054925,669.57,665.51,1.00651161]
[1747853287519,1.10876253,668.77,665.51,1.00651161]
[1747853288519,1.04004517,668.76,665.51,1.00651161]
[1747853290420,1.10876253,668.65,665.51,1.00651161]
[1747853291320,1.10876253,668.65,665.51,1.47976549]
[1747853291720,1.04004517,668.64,665.51,1.47976549]
[1747853293328,1.10876253,668.52,665.74,1.00651161]
[1747853293523,1.10876253,668.52,666.03,0.47325388]
[1747853294126,1.04004517,668.51,666.03,0.47325388]
[1747853295331,2.1488077,668.64,666.03,0.47325388]
[1747853296131,2.1488077,668.64,666.07,0.47325388]
[1747853296532,1.04004517,668.63,666.07,0.47325388]
[1747853297737,1.00709268,668.62,666.07,0.47325388]
[1747853297933,1.00709268,668.61,666.07,0.47325388]
[1747853298137,1.00709268,668.6,666.07,0.47325388]
[1747853298334,1.10876253,668.45,666.07,0.47325388]
[1747853298534,1.10876253,668.45,666.24,0.47325388]
[1747853300028,1.04004517,668.44,666.24,0.47325388]
[1747853300734,1.04004517,668.44,666.44,0.47325388]
[1747853302038,1.04004517,668.57,666.44,0.47325388]
[1747853303539,1.04004517,668.73,666.44,0.47325388]
[1747853304040,1.04004517,668.73,666.25,0.47325388]
[1747853305940,1.04004517,668.98,666.25,0.47325388]
[1747853306141,1.01101714,668.97,666.25,0.47325388]
[1747853306341,1.01101714,668.96,666.25,0.47325388]
[1747853306541,1.01101714,668.95,666.25,0.47325388]
[1747853306742,1.01101714,668.94,666.25,0.47325388]
[1747853306937,1.01101714,668.93,666.25,0.47325388]
[1747853307143,1.10876253,668.91,666.21,0.47325388]
[1747853307337,1.01101714,668.9,666.21,0.47325388]
[1747853308144,1.01101714,668.89,666.21,0.47325388]
[1747853308346,1.01101714,668.88,666.21,0.47325388]
[1747853308543,1.01101714,668.87,666.21,0.47325388]
[1747853308743,1.01292869,668.86,666.21,0.47325388]
[1747853308946,1.01292869,668.85,666.21,0.47325388]
[1747853309243,1.04004517,668.88,666.21,0.47325388]
[1747853309244,1.01292869,668.84,666.21,0.47325388]
[1747853309442,1.01292869,668.83,666.21,0.47325388]
[1747853309642,1.01292869,668.82,666.16,0.26046734]
[1747853310941,1.04004517,668.81,666.16,0.26046734]
[1747853311148,1.01292869,668.8,666.16,0.26046734]
[1747853312149,1.04004517,668.79,666.16,0.26046734]
[1747853312449,1.01530536,668.78,666.16,0.26046734]
[1747853312642,1.01530536,668.77,666.16,0.26046734]
[1747853312854,1.01530536,668.76,666.16,0.26046734]
[1747853313046,1.01530536,668.75,666.16,0.26046734]
[1747853313249,1.01530536,668.74,666.16,0.26046734]
[1747853313547,2.05535053,668.73,666.16,0.26046734]
[1747853313747,1.01530536,668.72,666.16,0.26046734]
[1747853314148,1.01530536,668.71,666.16,0.26046734]
[1747853314351,1.01530536,668.7,665.89,1.00651161]
[1747853314648,1.01530536,668.69,666.16,0.26052292]
[1747853314849,1.01530536,668.68,665.89,1.00651161]
[1747853315050,1.01530536,668.67,665.88,0.47325388]
[1747853315549,1.01530536,668.67,665.49,1.00651161]
[1747853315751,1.01530536,668.66,665.49,1.00651161]
[1747853315948,1.01530536,668.65,665.49,1.00651161]
[1747853316147,1.01530536,668.64,665.5,0.26059998]
[1747853316343,2.05535053,668.63,665.5,0.26059998]
[1747853316547,1.01530536,668.62,665.5,0.26059998]
[1747853316747,1.01530536,668.61,665.5,0.26059998]
[1747853317052,1.01530536,668.6,665.5,0.26059998]
[1747853317248,1.01530536,668.59,665.5,0.26059998]
[1747853317445,1.01530536,668.58,665.5,0.26059998]
[1747853317650,1.01530536,668.57,665.5,0.26059998]
[1747853317848,1.04004517,668.63,665.5,0.26059998]
[1747853318147,1.04004517,668.56,665.58,0.47325388]
[1747853319063,1.04004517,668.55,665.58,0.47325388]
[1747853320347,1.04004517,668.55,666.33,0.47325388]
[1747853320556,1.04004517,668.54,666.33,0.47325388]
[1747853321653,1.04004517,668.53,666.33,0.47325388]
[1747853323355,1.04004517,668.52,666.87,0.47325388]
[1747853324155,1.04004517,668.51,666.87,0.47325388]
[1747853325354,1.04004517,668.51,666.79,0.47325388]
[1747853325555,1.04004517,668.5,666.79,0.47325388]
[1747853326856,1.10876253,668.69,666.79,0.47325388]
[1747853327056,1.02126685,668.68,666.79,0.47325388]
[1747853327256,1.02126685,668.67,666.79,0.47325388]
[1747853327457,1.02126685,668.66,666.88,0.47325388]
[1747853327657,1.02126685,668.65,666.88,0.47325388]
[1747853327858,1.02126685,668.64,666.88,0.47325388]
[1747853328155,1.0335579,668.64,666.94,1.00651161]
[1747853328959,1.0335579,668.63,666.94,1.00651161]
[1747853330361,1.0335579,668.62,666.94,1.00651161]
[1747853331462,1.0335579,668.93,666.94,1.00651161]
[1747853331654,1.02312502,668.92,666.94,1.00651161]
[1747853331854,1.02312502,668.91,666.94,1.00651161]
[1747853332059,1.02312502,668.9,666.94,1.00651161]
[1747853332260,1.02312502,668.89,666.94,1.00651161]
[1747853332461,1.02312502,668.88,666.94,1.00651161]
[1747853332661,1.02312502,668.87,666.94,1.00651161]
[1747853332855,1.02312502,668.86,666.94,1.00651161]
[1747853333058,1.02312502,668.85,666.94,1.00651161]
[1747853333259,1.02312502,668.84,666.94,1.00651161]
[1747853333558,1.02312502,668.83,666.94,1.00651161]
[1747853333756,1.02312502,668.82,666.94,1.00651161]
[1747853333961,1.02312502,668.81,666.94,1.00651161]
[1747853334260,1.02312502,668.8,666.94,1.00651161]
[1747853334462,1.02312502,668.79,666.94,1.00651161]
[1747853334662,1.02312502,668.78,666.94,1.00651161]
[1747853334854,1.02312502,668.77,666.94,1.00651161]
[1747853335063,1.02312502,668.76,666.94,1.00651161]
[1747853335357,1.02312502,668.75,666.94,1.00651161]
[1747853335558,1.02312502,668.74,666.94,1.00651161]
[1747853335857,1.02308496,668.73,666.94,1.00651161]
[1747853336059,1.02308496,668.72,666.94,1.00651161]
[1747853336259,1.0335579,668.73,667.24,0.47325388]
[1747853337064,2.05653259,668.72,667.24,0.47325388]
[1747853337362,1.0335579,668.72,667.24,0.47325388]
[1747853337862,1.02298869,668.71,667.24,0.47325388]
[1747853338056,1.0335579,668.71,667.24,0.47325388]
[1747853338565,1.02307343,668.7,667.24,0.47325388]
[1747853338763,1.02307343,668.7,666.94,1.00651161]
[1747853338764,1.0335579,668.71,666.94,1.00651161]
[1747853338965,1.02307606,668.7,666.94,1.00651161]
[1747853339264,1.0335579,668.69,666.94,1.00651161]
[1747853340566,1.0335579,668.68,666.91,1.00651161]
[1747853340963,1.023098,668.67,666.91,1.00651161]
[1747853341163,1.023098,668.66,666.98,0.47325388]
[1747853341364,1.023098,668.65,666.98,0.47325388]
[1747853341561,1.023098,668.64,666.98,0.47325388]
[1747853341866,2.0566559,668.63,666.98,0.47325388]
[1747853342068,1.0335579,668.63,666.98,0.47325388]
[1747853343066,1.0335579,668.62,666.98,0.47325388]
[1747853343366,1.0335579,668.62,666.91,1.00651161]
[1747853344368,1.10876253,668.79,666.91,1.00651161]
[1747853344561,1.02278325,668.78,666.91,1.00651161]
[1747853344768,1.02278325,668.77,666.91,1.00651161]
[1747853345068,1.02278325,668.76,666.91,1.00651161]
[1747853345267,1.10876253,668.79,666.91,1.00651161]
[1747853345467,1.02281096,668.78,666.91,1.00651161]
[1747853345663,1.02281096,668.77,666.91,1.00651161]
[1747853345865,1.02281096,668.76,666.91,1.00651161]
[1747853346168,1.03026905,668.77,667.02,0.47325388]
[1747853347266,1.03026905,668.76,667.02,0.47325388]
[1747853348168,1.03026905,668.76,667.08,0.47325388]
[1747853348968,1.03026905,668.75,667.08,0.47325388]
[1747853349869,1.02254356,668.74,667.08,0.47325388]
[1747853350168,1.03026905,668.75,667.08,0.47325388]
[1747853350367,1.03026905,668.73,667.08,0.47325388]
[1747853351769,1.03026905,668.72,667.08,0.47325388]
[1747853352265,1.03026905,668.72,667.05,0.47325388]
[1747853352669,1.03026905,668.71,667.05,0.47325388]
[1747853354069,1.03026905,668.7,667.13,0.47325388]
[1747853355172,1.10876253,668.92,667.13,0.47325388]
[1747853355371,1.02322458,668.91,667.13,0.47325388]
[1747853355670,1.02322458,668.9,667.13,0.47325388]
[1747853355872,1.02322458,668.89,667.13,0.47325388]
[1747853356065,1.02322458,668.88,667.13,0.47325388]
[1747853356269,1.02330468,668.87,667.13,0.47325388]
[1747853356466,1.02330468,668.86,667.13,0.47325388]
[1747853356671,1.02330468,668.85,667.13,0.47325388]
[1747853356866,1.02616023,668.86,667.13,0.47325388]
[1747853357271,1.02616023,668.86,667.21,0.47325388]
[1747853358071,1.10876253,669.09,667.21,0.47325388]
[1747853358671,1.0228585,669.08,667.21,0.47325388]
[1747853358872,1.10876253,669.09,667.21,0.47325388]
[1747853359072,1.02285888,669.08,667.21,0.47325388]
[1747853359366,1.02285888,669.07,667.21,0.47325388]
[1747853359566,1.02285888,669.06,667.21,0.47325388]
[1747853359769,1.02285888,669.05,667.99,0.64718651]
[1747853359971,1.02285888,669.04,667.99,0.64718651]
[1747853360166,1.02285888,669.03,667.99,0.64718651]
[1747853360367,1.02285888,669.02,667.99,0.64718651]
[1747853360569,1.02285888,669.01,667.99,0.64718651]
[1747853360769,2.03815202,669.0,667.99,0.64718651]
[1747853361067,1.02285888,668.99,667.99,0.64718651]
[1747853361267,1.02285888,668.98,667.99,0.64718651]
[1747853361468,1.02285888,668.97,667.99,0.64718651]
[1747853361670,1.02285888,668.96,667.99,0.64718651]
[1747853361873,1.02285888,668.95,667.99,0.64718651]
[1747853362170,1.02285888,668.94,667.99,0.64718651]
[1747853362370,1.01529314,668.94,668.01,0.64718651]
[1747853363080,1.01529314,668.93,668.01,0.64718651]
[1747853363679,1.02274111,668.92,668.01,0.64718651]
[1747853363885,1.01529314,668.93,668.01,0.64718651]
[1747853364379,1.02267812,668.92,668.01,0.64718651]
[1747853364580,1.01529314,668.92,668.0,0.64718651]
[1747853364775,1.02267162,668.91,668.0,0.64718651]
[1747853365079,1.01529314,668.92,668.0,0.64718651]
[1747853365080,1.02267162,668.9,668.0,0.64718651]
[1747853365275,1.02267162,668.89,668.0,0.64718651]
[1747853365481,1.02267162,668.88,668.0,0.64718651]
[1747853365681,1.02267162,668.87,668.0,0.64718651]
[1747853365883,1.02267162,668.86,668.0,0.64718651]
[1747853366282,1.02267162,668.85,668.0,0.64718651]
[1747853366482,1.02267162,668.84,668.0,0.64718651]
[1747853366683,1.02267162,668.83,668.0,0.64718651]
[1747853366884,1.02267162,668.82,668.0,0.64718651]
[1747853367185,1.02267162,668.81,668.0,0.64718651]
[1747853367380,1.02267162,668.8,668.0,0.64718651]
[1747853367686,1.10876253,668.75,667.45,0.2602667]
[1747853367887,1.02267162,668.74,667.45,0.2602667]
[1747853368086,1.02267162,668.73,667.45,0.2602667]
[1747853368288,1.02267162,668.72,667.44,0.64718651]
[1747853368479,2.03796476,668.71,667.44,0.64718651]
[1747853368682,1.02267162,668.7,667.45,0.26036406]
[1747853368982,1.45668107,668.69,667.45,0.26036406]
[1747853369182,1.45668107,668.68,667.45,0.26036406]
[1747853369383,1.45668107,668.67,667.45,0.26036406]
[1747853369584,1.45668107,668.66,667.45,0.26036406]
[1747853369783,1.45668107,668.65,667.45,0.26036406]
[1747853369983,1.45668107,668.64,667.45,0.26036406]
[1747853370181,1.10876253,668.61,667.45,0.26036406]
[1747853370485,1.02267162,668.6,667.45,0.26036406]
[1747853370683,1.02267162,668.59,667.45,0.26036406]
[1747853370886,1.02267162,668.58,667.45,0.26036406]
[1747853371086,1.02267162,668.57,667.45,0.26036406]
[1747853371287,1.02267162,668.56,667.45,0.26036406]
[1747853371487,2.03796476,668.55,666.35,1.00651161]
[1747853371685,1.02267162,668.54,667.45,0.26048099]
[1747853371887,1.02267162,668.53,666.35,1.00651161]
[1747853372088,1.02267162,668.52,666.35,1.00651161]
[1747853372286,1.02267162,668.51,666.35,1.00651161]
[1747853372491,1.02267162,668.5,666.35,1.00651161]
[1747853372687,1.45621691,668.49,666.35,1.00651161]
[1747853372890,1.45621691,668.48,666.36,0.26054145]
[1747853373089,1.45680089,668.47,666.36,0.26054145]
[1747853373290,1.45680089,668.46,666.36,0.26054145]
[1747853373486,1.45680089,668.45,666.36,0.26054145]
[1747853373689,2.47209403,668.44,666.36,0.26054145]
[1747853373891,1.45680089,668.43,666.36,0.26054145]
[1747853374090,1.45680089,668.42,666.36,0.26054145]
[1747853374287,1.45680089,668.41,666.35,1.00651161]
[1747853374491,1.45680089,668.4,666.35,1.00651161]
[1747853374693,1.45680089,668.39,666.36,0.260559]
[1747853374894,1.0232556,668.38,666.36,0.260559]
[1747853375091,1.45690317,668.37,666.36,0.260559]
[1747853375294,1.45690317,668.36,666.36,0.260559]
[1747853375492,1.0232556,668.35,666.36,0.260559]
[1747853375694,1.0232556,668.34,666.36,0.260559]
[1747853375898,1.0232556,668.33,666.36,0.260559]
[1747853376196,1.0232556,668.32,666.36,0.260559]
[1747853376390,1.0232556,668.31,666.36,0.260559]
[1747853376590,1.0232556,668.3,666.36,0.260559]
[1747853376790,1.02200056,668.29,666.36,0.260559]
[1747853376994,1.02200056,668.28,666.36,0.260559]
[1747853377290,1.02200056,668.27,666.36,0.260559]
[1747853377495,1.02200056,668.26,665.92,1.00651161]
[1747853377692,1.02200056,668.25,666.36,0.2605951]
[1747853377895,1.02200056,668.24,665.92,1.00651161]
[1747853378093,1.01529314,668.26,665.92,1.00651161]
[1747853378703,1.01529314,668.26,665.93,0.26059705]
[1747853379000,1.01529314,668.25,665.93,0.26059705]
[1747853380297,1.01529314,668.25,665.92,1.00651161]
[1747853380500,1.01529314,668.24,665.92,1.00651161]
[1747853380801,1.01529314,668.24,665.93,0.26061169]
[1747853381797,1.01529314,668.44,665.93,0.26061169]
[1747853382002,1.02070883,668.43,665.93,0.26061169]
[1747853382198,1.02070883,668.42,665.93,0.26061169]
[1747853382400,1.01529314,668.44,665.93,0.26061169]
[1747853382601,1.02061969,668.43,665.93,0.26061169]
[1747853382799,1.02061969,668.42,665.93,0.26061169]
[1747853383000,1.01529314,668.44,665.93,0.26061169]
[1747853383201,1.01529314,668.41,665.93,0.26061169]
[1747853383905,1.02055239,668.4,665.93,0.26061169]
[1747853384103,1.02055239,668.39,665.93,0.26061169]
[1747853384304,1.02055239,668.38,665.93,0.26061169]
[1747853384504,1.02055239,668.37,665.93,0.26061169]
[1747853384702,1.02055239,668.36,665.93,0.26061169]
[1747853384901,1.02055239,668.35,665.93,0.26061169]
[1747853385103,1.02055239,668.34,665.93,0.26061169]
[1747853385304,1.02055239,668.33,665.93,0.26061169]
[1747853385504,1.01529314,668.38,665.93,0.26061169]
[1747853385704,1.02032634,668.37,665.93,0.26061169]
[1747853386005,1.02032634,668.36,665.93,0.26061169]
[1747853386208,1.02032634,668.35,665.96,0.47325388]
[1747853386508,1.02032634,668.34,665.96,0.47325388]
[1747853387412,1.01529314,668.35,665.96,0.47325388]
[1747853387909,1.01529314,668.48,665.96,0.47325388]
[1747853388911,1.01529314,668.47,666.45,1.00651161]
[1747853390308,1.01529314,668.58,666.45,1.00651161]
[1747853392014,1.01529314,668.57,666.45,1.00651161]
[1747853393313,2.03472858,668.56,666.45,1.00651161]
[1747853393514,1.01943544,668.55,666.45,1.00651161]
[1747853393709,1.01529314,668.56,666.45,1.00651161]
[1747853393914,1.01929336,668.55,666.45,1.00651161]
[1747853394112,1.01529314,668.56,666.45,1.00651161]
[1747853394314,2.03459268,668.55,666.45,1.00651161]
[1747853394514,1.01529314,668.55,666.45,1.00651161]
[1747853396026,1.10876253,668.57,666.45,1.00651161]
[1747853396212,1.01905658,668.56,666.45,1.00651161]
[1747853396414,1.01899297,668.55,666.45,1.00651161]
[1747853396611,1.10876253,668.57,666.45,1.00651161]
[1747853396811,1.01898271,668.56,666.45,1.00651161]
[1747853397015,1.01898271,668.55,666.45,1.00651161]
[1747853397214,1.01529314,668.55,666.45,1.00651161]
[1747853397411,1.01886883,668.54,666.45,1.00651161]
[1747853397618,1.01886883,668.53,666.45,1.00651161]
[1747853397815,1.01886883,668.52,666.45,1.00651161]
[1747853398112,1.01886883,668.51,666.45,1.00651161]
[1747853398315,1.01876708,668.5,666.45,1.00651161]
[1747853398512,1.01876708,668.49,666.45,1.00651161]
[1747853398717,1.01876708,668.48,666.45,1.00651161]
[1747853399011,1.01876708,668.47,666.45,1.00651161]
[1747853399216,1.01529314,668.47,666.45,1.00651161]
[1747853400418,1.01874866,668.46,666.45,1.00651161]
[1747853400618,1.01874866,668.45,666.45,1.00651161]
[1747853400813,1.01874866,668.44,666.45,1.00651161]
[1747853401011,1.01529314,668.47,666.45,1.00651161]
[1747853401218,1.01529314,668.44,666.45,1.00651161]
[1747853402621,1.01529314,668.72,666.45,1.00651161]
[1747853402920,1.01865136,668.71,666.45,1.00651161]
[1747853403121,1.4523728,668.7,666.45,1.00651161]
[1747853403319,1.4523728,668.69,666.45,1.00651161]
[1747853403517,1.4523728,668.68,666.45,1.00651161]
[1747853403717,1.01865834,668.67,666.45,1.00651161]
[1747853403914,1.01865834,668.67,666.44,0.47325388]
[1747853403915,1.01865834,668.66,666.44,0.47325388]
[1747853404117,1.01865834,668.65,666.44,0.47325388]
[1747853404317,1.01865834,668.64,666.44,0.47325388]
[1747853404521,1.01865834,668.63,666.44,0.47325388]
[1747853404721,1.01865834,668.62,666.44,0.47325388]
[1747853404923,1.01865834,668.61,666.44,0.47325388]
[1747853405120,1.01865834,668.6,666.44,0.47325388]
[1747853405420,1.01865834,668.59,666.44,0.47325388]
[1747853405619,1.01865834,668.58,666.44,0.47325388]
[1747853405820,1.01865834,668.57,666.44,0.47325388]
[1747853406021,1.01529314,668.6,666.44,0.47325388]
[1747853406022,1.01865834,668.56,666.44,0.47325388]
[1747853406321,1.01865834,668.55,666.44,0.47325388]
[1747853406520,1.01529314,668.6,666.44,0.47325388]
[1747853406721,1.01801423,668.59,666.44,0.47325388]
[1747853407016,1.01801423,668.58,666.44,0.47325388]
[1747853407221,1.01801423,668.57,666.44,0.47325388]
[1747853407421,1.01801423,668.56,666.44,0.47325388]
[1747853407621,1.0181093,668.55,666.44,0.47325388]
[1747853407821,1.0181093,668.54,666.44,0.47325388]
[1747853408023,1.01529314,668.59,666.44,0.47325388]
[1747853408223,1.0181198,668.58,666.44,0.47325388]
[1747853408423,1.0181198,668.57,666.82,0.47325388]
[1747853408723,1.0181198,668.56,666.82,0.47325388]
[1747853409623,1.01529314,668.57,666.82,0.47325388]
[1747853410124,1.01529314,668.56,666.82,0.47325388]
[1747853411525,1.01529314,668.69,666.82,0.47325388]
[1747853411724,1.01529314,668.69,666.85,0.47325388]
[1747853411725,1.01661222,668.68,666.85,0.47325388]
[1747853411925,1.01658229,668.67,666.85,0.47325388]
[1747853412121,1.01658229,668.66,666.85,0.47325388]
[1747853412325,1.01658229,668.65,666.85,0.47325388]
[1747853412525,1.01658229,668.64,666.85,0.47325388]
[1747853412727,1.01658229,668.63,666.85,0.47325388]
[1747853413030,1.01529314,668.64,666.85,0.47325388]
[1747853414128,1.10876253,668.73,667.05,0.47325388]
[1747853414129,1.01529314,668.72,667.05,0.47325388]
[1747853414627,1.01686554,668.71,667.05,0.47325388]
[1747853414827,1.01686554,668.7,667.05,0.47325388]
[1747853415028,1.01686554,668.69,667.05,0.47325388]
[1747853415329,1.01686554,668.68,667.05,0.47325388]
[1747853415530,1.01686554,668.67,667.05,0.47325388]
[1747853416327,1.01529314,668.68,667.05,0.47325388]
[1747853416731,2.03250562,668.67,667.05,0.47325388]
[1747853416926,1.01529314,668.67,667.05,0.47325388]
[1747853417233,1.01529314,668.67,667.09,0.47325388]
[1747853417434,1.01766942,668.66,667.09,0.47325388]
[1747853417627,1.01766942,668.65,667.09,0.47325388]
[1747853417827,1.01766942,668.64,667.09,0.47325388]
[1747853418027,1.01766942,668.63,667.09,0.47325388]
[1747853418232,1.01766942,668.62,667.09,0.47325388]
[1747853418432,1.01766942,668.61,667.09,0.47325388]
[1747853418630,1.01766942,668.6,667.09,0.47325388]
[1747853418833,1.01766942,668.59,667.09,0.47325388]
[1747853419033,1.01766942,668.58,666.96,0.47325388]
[1747853419228,1.01766942,668.57,666.96,0.47325388]
[1747853419432,2.03296256,668.56,666.96,0.47325388]
[1747853419628,1.01766942,668.55,666.96,0.47325388]
[1747853420933,1.01766942,668.55,666.88,1.00651161]
[1747853421132,1.019794,668.54,666.88,1.00651161]
[1747853421329,1.019794,668.53,666.88,1.00651161]
[1747853421533,1.019794,668.52,666.73,0.26045565]
[1747853421734,1.019794,668.51,666.73,0.26045565]
[1747853421933,1.019794,668.5,666.73,0.26045565]
[1747853422134,1.019794,668.49,666.73,0.26045565]
[1747853422335,2.03508714,668.48,666.73,0.26045565]
[1747853422529,1.019794,668.47,666.59,1.00651161]
[1747853422836,1.019794,668.47,666.73,0.26049172]
[1747853423134,1.019794,668.47,666.59,1.00651161]
[1747853423327,1.019794,668.46,666.59,1.00651161]
[1747853423531,1.019794,668.45,666.59,1.00651161]
[1747853423730,1.019794,668.44,666.83,1.00651161]
[1747853424636,1.019794,668.43,666.83,1.00651161]
[1747853424934,2.03508714,668.42,666.83,1.00651161]
[1747853425135,1.019794,668.41,666.83,1.00651161]
[1747853425431,1.019794,668.4,666.83,1.00651161]
[1747853425635,1.019794,668.39,666.83,1.00651161]
[1747853425834,1.019794,668.38,666.83,1.00651161]
[1747853426036,1.019794,668.37,666.83,1.00651161]
[1747853426234,1.019794,668.36,666.83,1.00651161]
[1747853426534,1.019794,668.35,666.83,1.00651161]
[1747853426835,1.019794,668.34,666.83,1.00651161]
[1747853427739,1.01529314,668.35,666.83,1.00651161]
[1747853428138,1.01529314,668.34,666.83,1.00651161]
[1747853429040,1.01529314,668.34,666.84,0.47325388]
[1747853429739,1.01529314,668.33,666.84,0.47325388]
[1747853430935,1.01529314,668.32,666.84,0.47325388]
[1747853432044,1.01529314,668.32,666.83,1.00651161]
[1747853432645,1.01529314,668.31,667.45,0.6546091]
[1747853434144,1.01529314,668.3,667.45,0.6546091]
[1747853435642,1.01529314,668.29,667.45,0.6546091]
[1747853435849,1.01529314,668.29,667.51,0.6546091]
[1747853437150,1.01529314,668.51,667.51,0.6546091]
[1747853437348,1.02318375,668.5,667.51,0.6546091]
[1747853437550,1.01529314,668.51,667.51,0.6546091]
[1747853437950,1.0231789,668.5,667.51,0.6546091]
[1747853438147,1.0231789,668.49,667.51,0.6546091]
[1747853438448,1.0231789,668.48,667.51,0.6546091]
[1747853438656,1.0231789,668.47,667.51,0.6546091]
[1747853438850,1.48244979,668.67,666.87,0.47325388]
[1747853438851,1.0231789,668.46,667.68,0.6546091]
[1747853439153,1.0231789,668.45,667.68,0.6546091]
[1747853439354,1.0231789,668.44,667.68,0.6546091]
[1747853439547,1.0231789,668.43,667.68,0.6546091]
[1747853439749,2.03847204,668.42,667.68,0.6546091]
[1747853439954,1.01529314,668.42,667.68,0.6546091]
[1747853440856,1.01529314,668.41,667.66,0.6546091]
[1747853441654,1.01529314,668.4,667.66,0.6546091]
[1747853443160,1.01529314,668.58,667.7,0.6546091]
[1747853443461,1.02295892,668.57,667.7,0.6546091]
[1747853443760,1.02295892,668.56,667.7,0.6546091]
[1747853443959,1.02295892,668.55,667.7,0.6546091]
[1747853444159,1.02295892,668.54,667.7,0.6546091]
[1747853444358,2.03825206,668.53,667.7,0.6546091]
[1747853444561,1.02295892,668.52,667.7,0.6546091]
[1747853444862,1.02295892,668.51,667.7,0.6546091]
[1747853445062,1.02295892,668.5,667.7,0.6546091]
[1747853445362,1.02295892,668.49,667.7,0.6546091]
[1747853445561,1.02295892,668.48,667.7,0.6546091]
[1747853445761,1.02295892,668.47,667.7,0.6546091]
[1747853445962,1.02295892,668.46,667.63,0.6546091]
[1747853446163,1.02295892,668.45,667.63,0.6546091]
[1747853446361,1.02295892,668.44,667.63,0.6546091]
[1747853446562,1.02295892,668.43,667.63,0.6546091]
[1747853446862,1.02295892,668.42,667.63,0.6546091]
[1747853447063,1.02295892,668.41,667.63,0.6546091]
[1747853447363,1.01529314,668.42,667.63,0.6546091]
[1747853447764,1.02311409,668.41,667.63,0.6546091]
[1747853447961,1.01529314,668.42,667.63,0.6546091]
[1747853448162,1.02311816,668.41,667.63,0.6546091]
[1747853448362,2.0384113,668.4,667.56,0.6546091]
[1747853448562,1.02311816,668.39,667.56,0.6546091]
[1747853448764,1.02311816,668.38,667.56,0.6546091]
[1747853449061,1.02311816,668.37,667.56,0.6546091]
[1747853449258,1.02311816,668.36,667.56,0.6546091]
[1747853449465,1.02311816,668.35,667.56,0.6546091]
[1747853449663,1.02311816,668.34,667.56,0.6546091]
[1747853449864,1.02319769,668.33,667.56,0.6546091]
[1747853450158,1.02319769,668.32,667.56,0.6546091]
[1747853450463,1.02320152,668.31,667.56,0.6546091]
[1747853450659,1.01529314,668.36,667.56,0.6546091]
[1747853451165,1.01529314,668.31,667.56,0.6546091]
[1747853452666,1.10876253,668.51,667.56,0.6546091]
[1747853452966,1.0231273,668.5,667.56,0.6546091]
[1747853453166,1.0231273,668.49,667.56,0.6546091]
[1747853453370,1.02312671,668.48,667.56,0.6546091]